[Event "Schack-SM 2024: Junior-SM"]
[Site "Fortnox Arena, Hejaregatan 5, Vaxjo, Sweden"]
[Date "2024.07.01"]
[Round "3.3"]
[White "Seo, Jung Hyun"]
[Black "Wernberg, Hugo"]
[Result "1/2-1/2"]
[TimeControl "90 minutes for 40 moves + 30 minutes for the rest of the game + 30 seconds per move from move one."]
[BlackTitle "FM"]
[WhiteElo "2137"]
[BlackElo "2208"]

1. e4 {[%clk 01:30:58]} {[%emt 00:04:52]} c5 {[%clk 01:30:31]} {[%emt
00:00:27]} 2. Nf3 {[%clk 01:31:24]} {[%emt 00:00:04]} Nc6 {[%clk 01:30:49]}
{[%emt 00:00:12]} 3. d4 {[%clk 01:31:37]} {[%emt 00:00:16]} cxd4 {[%clk
01:31:14]} {[%emt 00:00:06]} 4. Nxd4 {[%clk 01:32:03]} {[%emt 00:00:03]} e5
{[%clk 01:31:33]} {[%emt 00:00:11]} 5. Nb5 {[%clk 01:32:28]} {[%emt 00:00:05]}
d6 {[%clk 01:31:44]} {[%emt 00:00:20]} 6. c4 {[%clk 01:32:51]} {[%emt
00:00:06]} Be6 {[%clk 01:31:47]} {[%emt 00:00:28]} 7. N5c3 {[%clk 01:33:04]}
{[%emt 00:00:17]} Nf6 {[%clk 01:30:02]} {[%emt 00:02:15]} 8. Bd3 {[%clk
01:33:29]} {[%emt 00:00:05]} g6 {[%clk 01:28:23]} {[%emt 00:02:09]} 9. Nd5
{[%clk 01:33:42]} {[%emt 00:00:18]} Bxd5 {[%emt 00:01:58]} 10. cxd5 {[%clk
01:33:29]} {[%emt 00:00:24]} Nd4 {[%clk 01:26:13]} {[%emt 00:01:30]} 11. Be3
{[%clk 01:32:19]} {[%emt 00:01:39]} Bg7 {[%clk 01:25:15]} {[%emt 00:01:29]} 12.
Nc3 {[%clk 01:29:47]} {[%emt 00:03:02]} O-O {[%clk 01:24:10]} {[%emt 00:01:35]}
13. O-O {[%clk 01:30:05]} {[%emt 00:00:11]} Nd7 {[%clk 01:21:12]} {[%emt
00:03:28]} 14. Rc1 {[%clk 01:19:22]} {[%emt 00:11:14]} Rc8 {[%clk 01:05:16]}
{[%emt 00:16:26]} 15. Qd2 {[%clk 01:14:05]} {[%emt 00:05:46]} a6 {[%clk
00:48:59]} {[%emt 00:16:47]} 16. f3 {[%clk 01:09:38]} {[%emt 00:04:57]} b5
{[%clk 00:45:43]} {[%emt 00:03:47]} 17. Ne2 {[%clk 01:04:23]} {[%emt 00:05:45]}
Nc5 {[%clk 00:40:29]} {[%emt 00:05:44]} 18. Bb1 {[%clk 01:01:16]} {[%emt
00:03:37]} Qb6 {[%clk 00:31:14]} {[%emt 00:09:45]} 19. Rfd1 {[%clk 00:54:59]}
{[%emt 00:06:46]} Nxe2+ {[%clk 00:19:00]} {[%emt 00:12:45]} 20. Qxe2 {[%clk
00:55:18]} {[%emt 00:00:10]} b4 {[%clk 00:15:41]} {[%emt 00:03:50]} 21. Rc4
{[%clk 00:52:04]} {[%emt 00:03:41]} Rc7 {[%clk 00:13:13]} {[%emt 00:03:01]} 22.
g4 {[%clk 00:45:44]} {[%emt 00:06:49]} Rfc8 {[%clk 00:12:26]} {[%emt 00:01:17]}
23. Rdc1 {[%clk 00:45:56]} {[%emt 00:00:18]} Qb7 {[%clk 00:10:29]} {[%emt
00:02:27]} 24. Kg2 {[%clk 00:40:13]} {[%emt 00:06:13]} Bf8 {[%clk 00:09:54]}
{[%emt 00:01:05]} 25. Bd3 {[%clk 00:35:05]} {[%emt 00:05:39]} a5 {[%clk
00:07:07]} {[%emt 00:03:17]} 26. Qd1 {[%clk 00:31:40]} {[%emt 00:03:54]} Be7
{[%clk 00:04:43]} {[%emt 00:02:55]} 27. Be2 {[%clk 00:30:43]} {[%emt 00:01:26]}
Bf8 {[%clk 00:04:44]} {[%emt 00:00:29]} 28. Qc2 {[%clk 00:27:37]} {[%emt
00:03:31]} Qb6 {[%clk 00:04:33]} {[%emt 00:00:47]} 29. Rb1 {[%clk 00:24:54]}
{[%emt 00:03:13]} Qa7 {[%clk 00:04:24]} {[%emt 00:00:39]} 30. a3 {[%clk
00:20:28]} {[%emt 00:04:56]} bxa3 {[%clk 00:04:26]} {[%emt 00:00:28]} 31. bxa3
{[%clk 00:20:57]} {[%emt 00:00:01]} Rb8 {[%clk 00:04:06]} {[%emt 00:00:49]} 32.
a4 {[%clk 00:20:46]} {[%emt 00:00:41]} Rxb1 {[%clk 00:03:59]} {[%emt 00:00:37]}
33. Qxb1 {[%clk 00:21:16]} {[%emt 00:00:01]} Rb7 {[%clk 00:04:12]} {[%emt
00:00:16]} 34. Qd1 {[%clk 00:18:10]} {[%emt 00:03:35]} Qb8 {[%clk 00:04:00]}
{[%emt 00:00:43]} 35. Rc3 {[%clk 00:15:44]} {[%emt 00:02:53]} Rb1 {[%clk
00:03:43]} {[%emt 00:00:51]} 36. Rc1 {[%clk 00:12:08]} {[%emt 00:04:07]} Rb2
{[%clk 00:03:35]} {[%emt 00:00:37]} 37. Bxc5 {[%clk 00:11:02]} {[%emt
00:01:35]} dxc5 {[%clk 00:03:51]} {[%emt 00:00:14]} 38. Rc2 {[%clk 00:11:16]}
{[%emt 00:00:16]} Qb3 {[%clk 00:03:11]} {[%emt 00:01:10]} 39. Rxb2 {[%clk
00:11:20]} {[%emt 00:00:27]} Qxb2 {[%clk 00:03:36]} {[%emt 00:00:05]} 40. Qd3
{[%clk 00:11:42]} {[%emt 00:00:07]} 1/2-1/2

[Event "Schack-SM 2024: Junior-SM"]
[Site "Fortnox Arena, Hejaregatan 5, Vaxjo, Sweden"]
[Date "2024.07.01"]
[Round "3.4"]
[White "Rasti, Arvin"]
[Black "Strom-Engdahl, Alexander"]
[Result "1/2-1/2"]
[TimeControl "90 minutes for 40 moves + 30 minutes for the rest of the game + 30 seconds per move from move one."]
[WhiteTitle "FM"]
[WhiteElo "2210"]
[BlackElo "2191"]

1. Nf3 {[%clk 01:20:44]} {[%emt 00:10:10]} d5 {[%clk 01:30:09]} {[%emt
00:00:51]} 2. g3 {[%clk 01:20:31]} {[%emt 00:00:44]} c6 {[%clk 01:30:33]}
{[%emt 00:00:06]} 3. Bg2 {[%clk 01:20:50]} {[%emt 00:00:11]} Bg4 {[%clk
01:30:55]} {[%emt 00:00:08]} 4. O-O {[%clk 01:20:48]} {[%emt 00:00:32]} Nd7
{[%clk 01:30:56]} {[%emt 00:00:29]} 5. c4 {[%clk 01:20:34]} {[%emt 00:00:43]}
e6 {[%clk 01:29:03]} {[%emt 00:02:23]} 6. cxd5 {[%clk 01:20:06]} {[%emt
00:00:59]} exd5 {[%clk 01:28:56]} {[%emt 00:00:37]} 7. Nc3 {[%clk 01:20:19]}
{[%emt 00:00:18]} Ngf6 {[%clk 01:28:56]} {[%emt 00:00:29]} 8. d3 {[%clk
01:20:43]} {[%emt 00:00:06]} Bc5 {[%clk 01:18:25]} {[%emt 00:11:01]} 9. Qc2
{[%clk 01:18:11]} {[%emt 00:03:02]} O-O {[%clk 01:16:07]} {[%emt 00:02:47]} 10.
h3 {[%clk 01:14:48]} {[%emt 00:03:54]} Bxf3 {[%clk 01:13:00]} {[%emt 00:03:37]}
11. Bxf3 {[%clk 01:15:00]} {[%emt 00:00:18]} Qb8 {[%clk 01:12:01]} {[%emt
00:01:28]} 12. Kg2 {[%clk 01:12:13]} {[%emt 00:03:17]} Re8 {[%clk 01:09:13]}
{[%emt 00:03:18]} 13. e4 {[%clk 01:09:50]} {[%emt 00:02:54]} dxe4 {[%clk
01:07:56]} {[%emt 00:01:46]} 14. dxe4 {[%clk 01:10:07]} {[%emt 00:00:13]} a5
{[%clk 01:06:33]} {[%emt 00:01:54]} 15. Bf4 {[%clk 01:01:49]} {[%emt 00:08:47]}
Qa7 {[%clk 01:01:47]} {[%emt 00:05:16]} 16. Rad1 {[%clk 01:01:38]} {[%emt
00:00:41]} Ne5 {[%clk 00:59:14]} {[%emt 00:03:04]} 17. Be2 {[%clk 01:01:22]}
{[%emt 00:00:46]} Ng6 {[%clk 00:57:31]} {[%emt 00:02:13]} 18. Bg5 {[%clk
00:57:54]} {[%emt 00:03:58]} Bd4 {[%clk 00:56:20]} {[%emt 00:01:40]} 19. Bc4
{[%clk 00:41:13]} {[%emt 00:17:11]} h6 {[%clk 00:45:49]} {[%emt 00:11:02]} 20.
Bxf6 {[%clk 00:27:46]} {[%emt 00:13:57]} Bxf6 {[%clk 00:44:53]} {[%emt
00:01:26]} 21. f4 {[%clk 00:28:00]} {[%emt 00:00:16]} Bxc3 {[%clk 00:36:32]}
{[%emt 00:08:51]} 22. Qxc3 {[%clk 00:21:49]} {[%emt 00:06:41]} Rxe4 {[%clk
00:27:12]} {[%emt 00:09:49]} 23. Rd7 {[%clk 00:08:04]} {[%emt 00:14:15]} Re7
{[%clk 00:25:47]} {[%emt 00:01:55]} 24. Rd6 {[%clk 00:07:39]} {[%emt 00:00:55]}
Nf8 {[%clk 00:21:31]} {[%emt 00:04:46]} 25. f5 {[%clk 00:07:49]} {[%emt
00:00:20]} b5 {[%clk 00:14:03]} {[%emt 00:07:59]} 26. f6 {[%clk 00:07:13]}
{[%emt 00:01:06]} gxf6 {[%clk 00:12:50]} {[%emt 00:01:43]} 27. Bb3 {[%clk
00:06:25]} {[%emt 00:01:18]} a4 {[%clk 00:12:09]} {[%emt 00:01:11]} 28. Bd1
{[%clk 00:06:54]} Nh7 {[%clk 00:11:16]} {[%emt 00:01:24]} 29. Bc2 {[%clk
00:05:20]} {[%emt 00:02:04]} Re2+ {[%clk 00:09:07]} {[%emt 00:02:38]} 30. Kh1
{[%clk 00:05:49]} {[%emt 00:00:01]} Rf2 {[%clk 00:09:29]} {[%emt 00:00:08]} 31.
Bxh7+ {[%clk 00:04:13]} {[%emt 00:02:08]} Kxh7 {[%clk 00:09:50]} {[%emt
00:00:07]} 32. Rxf2 {[%clk 00:04:42]} {[%emt 00:00:02]} Qxf2 {[%clk 00:10:06]}
{[%emt 00:00:14]} 33. Rxf6 {[%clk 00:05:11]} {[%emt 00:00:01]} Qa7 {[%clk
00:09:15]} {[%emt 00:01:20]} 34. Qd2 {[%clk 00:04:34]} {[%emt 00:01:08]} Kg8
{[%clk 00:08:10]} {[%emt 00:01:34]} 35. Rxh6 {[%clk 00:04:11]} {[%emt
00:00:53]} Qe7 {[%clk 00:07:01]} {[%emt 00:01:40]} 36. Rh4 {[%clk 00:04:40]} f5
{[%clk 00:04:21]} {[%emt 00:03:10]} 37. Qc3 {[%clk 00:04:33]} {[%emt 00:00:37]}
Qg7 {[%clk 00:04:14]} {[%emt 00:00:37]} 38. Qxc6 {[%clk 00:04:43]} {[%emt
00:00:19]} Rf8 {[%clk 00:01:30]} {[%emt 00:03:15]} 39. Rh6 {[%clk 00:04:30]}
{[%emt 00:00:43]} Qf7 {[%clk 00:01:39]} {[%emt 00:00:20]} 40. Qg6+ {[%clk
00:02:45]} {[%emt 00:02:15]} Qxg6 {[%clk 00:02:02]} {[%emt 00:00:08]} 41. Rxg6+
{[%clk 00:03:13]} {[%emt 00:00:02]} Kh7 {[%clk 00:00:48]} {[%emt 00:01:43]} 42.
Rb6 {[%clk 00:03:26]} {[%emt 00:00:17]} Rd8 {[%clk 00:00:49]} {[%emt 00:00:29]}
43. Rxb5 {[%clk 00:03:31]} {[%emt 00:00:25]} Rd2 {[%clk 00:01:12]} {[%emt
00:00:07]} 44. a3 {[%clk 00:03:07]} {[%emt 00:00:54]} Kg6 {[%clk 00:29:36]}
{[%emt 00:02:06]} 45. Kg1 {[%clk 00:33:17]} {[%emt 00:00:20]} Rc2 {[%clk
00:27:39]} {[%emt 00:02:27]} 46. g4 {[%clk 00:32:40]} {[%emt 00:01:07]} f4
{[%clk 00:27:27]} {[%emt 00:00:42]} 47. h4 {[%clk 00:33:04]} {[%emt 00:00:06]}
f3 {[%clk 00:27:41]} {[%emt 00:00:16]} 48. Rb6+ {[%clk 00:33:26]} {[%emt
00:00:08]} Kg7 {[%clk 00:27:42]} {[%emt 00:00:29]} 49. Rb4 {[%clk 00:33:26]}
{[%emt 00:00:29]} Kg6 {[%clk 00:27:01]} {[%emt 00:01:12]} 50. Rxa4 {[%clk
00:32:47]} {[%emt 00:01:10]} Rxb2 {[%clk 00:27:25]} {[%emt 00:00:06]} 51. Ra6+
{[%clk 00:30:50]} {[%emt 00:02:25]} Kg7 {[%clk 00:27:47]} {[%emt 00:00:09]} 52.
Ra5 {[%clk 00:29:42]} {[%emt 00:01:38]} Kh6 {[%clk 00:27:37]} {[%emt 00:00:40]}
53. Rh5+ {[%clk 00:29:27]} {[%emt 00:00:46]} Kg6 {[%clk 00:27:48]} {[%emt
00:00:19]} 54. Rf5 {[%clk 00:29:32]} {[%emt 00:00:24]} Rb3 {[%clk 00:27:40]}
{[%emt 00:00:37]} 55. Kf2 {[%clk 00:29:50]} {[%emt 00:00:13]} Rxa3 {[%clk
00:28:05]} {[%emt 00:00:06]} 56. Rxf3 {[%clk 00:30:13]} {[%emt 00:00:07]} Ra6
{[%clk 00:27:58]} {[%emt 00:00:37]} 57. Rb3 {[%clk 00:30:34]} {[%emt 00:00:08]}
Rc6 {[%clk 00:28:22]} {[%emt 00:00:06]} 58. Kg3 {[%clk 00:30:54]} {[%emt
00:00:10]} Ra6 {[%clk 00:28:46]} {[%emt 00:00:06]} 59. h5+ {[%clk 00:31:18]}
{[%emt 00:00:06]} Kh6 {[%clk 00:28:33]} {[%emt 00:00:44]} 60. Kh4 {[%clk
00:31:40]} {[%emt 00:00:07]} Ra4 {[%clk 00:28:52]} {[%emt 00:00:11]} 61. Rb6+
{[%clk 00:32:01]} {[%emt 00:00:10]} Kg7 {[%clk 00:28:47]} {[%emt 00:00:34]} 62.
h6+ {[%clk 00:32:16]} {[%emt 00:00:15]} Kh7 {[%clk 00:29:06]} {[%emt 00:00:12]}
63. Kh5 {[%clk 00:32:39]} {[%emt 00:00:06]} Ra5+ {[%clk 00:28:25]} {[%emt
00:01:12]} 64. g5 {[%clk 00:32:55]} {[%emt 00:00:12]} Kg8 {[%clk 00:28:43]}
{[%emt 00:00:12]} 65. Kg6 {[%clk 00:33:01]} {[%emt 00:00:25]} Ra8 {[%clk
00:29:08]} {[%emt 00:00:06]} 66. h7+ {[%clk 00:33:23]} {[%emt 00:00:06]} Kh8
{[%clk 00:29:34]} {[%emt 00:00:06]} 67. Rf6 {[%clk 00:29:23]} {[%emt 00:04:30]}
Ra6 {[%clk 00:25:24]} {[%emt 00:04:39]} 68. Kh5 {[%clk 00:29:47]} {[%emt
00:00:06]} Ra5 {[%clk 00:25:49]} {[%emt 00:00:06]} 69. Kh6 {[%clk 00:28:06]}
{[%emt 00:02:10]} Ra6 {[%clk 00:26:13]} {[%emt 00:00:06]} 70. Kg6 {[%clk
00:28:33]} {[%emt 00:00:03]} Rb6 {[%clk 00:25:19]} {[%emt 00:01:25]} 71. Kh5
{[%clk 00:24:59]} {[%emt 00:04:04]} Rb5 {[%clk 00:25:06]} {[%emt 00:00:43]} 72.
Rh6 {[%clk 00:25:09]} {[%emt 00:00:19]} Rb1 {[%clk 00:20:25]} {[%emt 00:05:11]}
73. Kg4 {[%clk 00:25:25]} {[%emt 00:00:13]} Rg1+ {[%clk 00:20:44]} {[%emt
00:00:13]} 74. Kf4 {[%clk 00:25:47]} {[%emt 00:00:07]} Rf1+ {[%clk 00:21:07]}
{[%emt 00:00:07]} 75. Ke3 {[%clk 00:25:51]} {[%emt 00:00:25]} Rg1 {[%clk
00:21:06]} {[%emt 00:00:32]} 76. Rh5 {[%clk 00:25:22]} {[%emt 00:00:59]} Rg2
{[%clk 00:21:18]} {[%emt 00:00:18]} 77. Kf4 {[%clk 00:23:03]} {[%emt 00:02:49]}
Rg1 {[%clk 00:21:08]} {[%emt 00:00:40]} 78. Rh6 {[%clk 00:20:26]} {[%emt
00:03:05]} Rf1+ {[%clk 00:20:45]} {[%emt 00:00:55]} 79. Ke3 {[%clk 00:19:21]}
{[%emt 00:01:35]} Rg1 {[%clk 00:21:01]} {[%emt 00:00:15]} 80. Rh5 {[%clk
00:18:08]} {[%emt 00:01:42]} Rg2 {[%clk 00:19:55]} {[%emt 00:01:37]} 81. Kf3
{[%clk 00:18:31]} {[%emt 00:00:07]} Rg1 {[%clk 00:20:14]} {[%emt 00:00:10]} 82.
Ke2 {[%clk 00:15:51]} {[%emt 00:03:10]} Rg2+ {[%clk 00:19:29]} {[%emt
00:01:15]} 83. Kf1 {[%clk 00:13:45]} {[%emt 00:02:36]} Rg3 {[%clk 00:19:46]}
{[%emt 00:00:14]} 84. Kf2 {[%clk 00:12:58]} {[%emt 00:01:15]} Rg4 {[%clk
00:20:14]} {[%emt 00:00:03]} 85. Ke3 {[%clk 00:13:19]} {[%emt 00:00:09]} Rg3+
{[%clk 00:19:01]} {[%emt 00:01:43]} 86. Kf4 {[%clk 00:12:56]} {[%emt 00:00:53]}
Rg1 {[%clk 00:18:42]} {[%emt 00:00:49]} 87. Kf3 {[%clk 00:12:22]} {[%emt
00:01:04]} Rf1+ {[%clk 00:18:24]} {[%emt 00:00:49]} 88. Kg2 {[%clk 00:11:37]}
{[%emt 00:01:15]} Rf5 {[%clk 00:18:01]} {[%emt 00:00:53]} 89. Kh2 {[%clk
00:11:21]} {[%emt 00:00:45]} Rf4 {[%clk 00:16:59]} {[%emt 00:01:32]} 90. Kg3
{[%clk 00:09:48]} {[%emt 00:02:03]} Rf1 {[%clk 00:17:12]} {[%emt 00:00:17]} 91.
Rh2 {[%clk 00:09:56]} {[%emt 00:00:21]} Rg1+ {[%clk 00:17:20]} {[%emt
00:00:23]} 92. Kf4 {[%clk 00:10:05]} {[%emt 00:00:21]} Rf1+ {[%clk 00:17:40]}
{[%emt 00:00:10]} 93. Ke5 {[%clk 00:08:38]} {[%emt 00:01:57]} Rf3 {[%clk
00:14:07]} {[%emt 00:04:02]} 94. Rh4 {[%clk 00:05:23]} {[%emt 00:03:45]} Rf1
{[%clk 00:12:01]} {[%emt 00:02:36]} 95. Ke6 {[%clk 00:04:58]} {[%emt 00:00:56]}
Rf2 {[%clk 00:11:56]} {[%emt 00:00:35]} 96. Ke5 {[%clk 00:03:43]} {[%emt
00:01:45]} Rf1 {[%clk 00:11:52]} {[%emt 00:00:34]} 97. Rh3 {[%clk 00:03:01]}
{[%emt 00:01:11]} Rf2 {[%clk 00:12:02]} {[%emt 00:00:21]} 98. Ke4 {[%clk
00:02:51]} {[%emt 00:00:39]} Rf1 {[%clk 00:12:20]} {[%emt 00:00:14]} 99. Rh2
{[%clk 00:03:15]} {[%emt 00:00:05]} Rg1 {[%clk 00:11:02]} {[%emt 00:01:48]} 100.
Kf5 {[%clk 00:03:29]} {[%emt 00:00:12]} Rf1+ {[%clk 00:11:18]} {[%emt
00:00:19]} 101. Kg6 {[%clk 00:03:56]} Rf6+ {[%clk 00:11:33]} {[%emt 00:00:16]}
102. Kh5 {[%clk 00:04:22]} {[%emt 00:00:03]} Rf1 {[%clk 00:11:48]} {[%emt
00:00:15]} 103. Kg4 {[%clk 00:02:18]} {[%emt 00:02:34]} Rg1+ {[%clk 00:11:54]}
{[%emt 00:00:25]} 104. Kf4 {[%clk 00:02:29]} {[%emt 00:00:18]} Rf1+ {[%clk
00:11:35]} {[%emt 00:00:50]} 105. Ke5 {[%clk 00:02:39]} {[%emt 00:00:20]} Rf3
{[%clk 00:11:41]} {[%emt 00:00:24]} 106. Rh1 {[%clk 00:02:45]} {[%emt
00:00:25]} Rg3 {[%clk 00:10:52]} {[%emt 00:01:19]} 107. Kf6 {[%clk 00:01:45]}
{[%emt 00:01:29]} Rf3+ {[%clk 00:11:06]} {[%emt 00:00:16]} 108. Kg6 {[%clk
00:02:10]} {[%emt 00:00:04]} Rf6+ {[%clk 00:11:18]} {[%emt 00:00:18]} 109. Kh5
{[%clk 00:02:38]} {[%emt 00:00:03]} Rf2 {[%clk 00:11:29]} {[%emt 00:00:20]} 110.
g6 {[%clk 00:02:30]} {[%emt 00:00:37]} Rg2 {[%clk 00:11:47]} {[%emt 00:00:13]}
111. Rh4 {[%clk 00:01:09]} {[%emt 00:01:50]} Rxg6 {[%clk 00:12:07]} {[%emt
00:00:10]} 112. Kxg6 {[%clk 00:01:34]} {[%emt 00:00:05]} 1/2-1/2

[Event "Schack-SM 2024: Junior-SM"]
[Site "Fortnox Arena, Hejaregatan 5, Vaxjo, Sweden"]
[Date "2024.07.01"]
[Round "3.5"]
[White "Soderstrom, Adrian"]
[Black "Falkevall, Axel"]
[Result "1-0"]
[TimeControl "90 minutes for 40 moves + 30 minutes for the rest of the game + 30 seconds per move from move one."]
[WhiteTitle "FM"]
[BlackTitle "FM"]
[WhiteElo "2351"]
[BlackElo "2318"]

1. d4 {[%clk 01:30:55]} {[%emt 00:00:03]} Nf6 {[%clk 01:24:22]} {[%emt
00:06:40]} 2. c4 {[%clk 01:30:01]} {[%emt 00:01:24]} e6 {[%clk 01:24:31]} 3. g3
{[%clk 01:31:12]} {[%emt 21:57:50]} Bb4+ {[%clk 01:31:16]} {[%emt 00:00:32]} 4.
Nd2 {[%clk 01:31:15]} {[%emt 00:00:27]} O-O {[%clk 01:31:09]} {[%emt 00:00:38]}
5. Bg2 {[%clk 01:30:57]} {[%emt 00:00:46]} d6 {[%clk 01:30:57]} {[%emt
00:00:42]} 6. Ngf3 {[%clk 01:28:16]} {[%emt 00:03:11]} a5 {[%clk 01:30:01]}
{[%emt 00:01:27]} 7. O-O {[%clk 01:28:13]} {[%emt 00:00:33]} a4 {[%clk
01:30:03]} {[%emt 00:00:29]} 8. Qc2 {[%clk 01:21:12]} {[%emt 00:07:31]} Qe7
{[%clk 01:29:19]} {[%emt 00:01:13]} 9. Nb1 {[%clk 01:14:59]} {[%emt 00:06:43]}
Bd7 {[%clk 01:28:58]} {[%emt 00:00:50]} 10. Nc3 {[%clk 01:08:12]} {[%emt
00:07:18]} Re8 {[%clk 01:16:34]} {[%emt 00:12:54]} 11. Bg5 {[%clk 00:49:25]}
{[%emt 00:19:16]} Bxc3 {[%clk 01:14:25]} {[%emt 00:02:40]} 12. Bxf6 {[%clk
00:45:29]} {[%emt 00:04:25]} Qxf6 {[%clk 01:13:15]} {[%emt 00:01:40]} 13. Qxc3
{[%clk 00:45:57]} {[%emt 00:00:03]} e5 {[%clk 01:07:33]} {[%emt 00:06:12]} 14.
dxe5 {[%clk 00:41:27]} {[%emt 00:04:59]} dxe5 {[%clk 01:07:23]} {[%emt
00:00:40]} 15. Rfd1 {[%clk 00:39:33]} {[%emt 00:02:24]} Qe7 {[%clk 01:02:02]}
{[%emt 00:05:51]} 16. b4 {[%clk 00:34:24]} {[%emt 00:05:39]} axb3 {[%clk
01:00:02]} {[%emt 00:02:31]} 17. axb3 {[%clk 00:34:39]} {[%emt 00:00:15]} Rxa1
{[%clk 00:57:43]} {[%emt 00:02:49]} 18. Rxa1 {[%clk 00:34:03]} {[%emt
00:01:06]} Nc6 {[%clk 00:57:08]} {[%emt 00:01:04]} 19. e3 {[%clk 00:32:29]}
{[%emt 00:02:04]} b6 {[%clk 00:48:40]} {[%emt 00:08:59]} 20. Nd2 {[%clk
00:20:04]} {[%emt 00:12:55]} f5 {[%clk 00:44:33]} {[%emt 00:04:36]} 21. c5
{[%clk 00:17:01]} {[%emt 00:03:34]} Qxc5 {[%clk 00:35:20]} {[%emt 00:09:42]} 22.
Qxc5 {[%clk 00:17:04]} {[%emt 00:00:27]} bxc5 {[%clk 00:35:46]} {[%emt
00:00:05]} 23. Rc1 {[%clk 00:16:28]} {[%emt 00:01:06]} e4 {[%clk 00:25:07]}
{[%emt 00:11:08]} 24. Rxc5 {[%clk 00:16:43]} {[%emt 00:00:16]} Re5 {[%clk
00:24:03]} {[%emt 00:01:34]} 25. Rc2 {[%clk 00:15:25]} {[%emt 00:01:47]} Kf8
{[%clk 00:14:43]} {[%emt 00:09:50]} 26. f3 {[%clk 00:13:50]} {[%emt 00:02:06]}
exf3 {[%clk 00:14:22]} {[%emt 00:00:51]} 27. Bxf3 {[%clk 00:14:16]} {[%emt
00:00:04]} Re6 {[%clk 00:13:53]} {[%emt 00:00:58]} 28. Kf2 {[%clk 00:13:25]}
{[%emt 00:01:22]} Ke7 {[%clk 00:12:53]} {[%emt 00:01:29]} 29. Rc5 {[%clk
00:13:01]} {[%emt 00:00:54]} Rf6 {[%clk 00:10:19]} {[%emt 00:03:04]} 30. Nc4
{[%clk 00:10:28]} {[%emt 00:03:03]} g5 {[%clk 00:07:50]} {[%emt 00:02:59]} 31.
h4 {[%clk 00:10:30]} {[%emt 00:00:28]} h6 {[%clk 00:07:16]} {[%emt 00:01:04]}
32. Ke2 {[%clk 00:07:52]} {[%emt 00:03:09]} Kd8 {[%clk 00:05:39]} {[%emt
00:02:07]} 33. hxg5 {[%clk 00:05:24]} {[%emt 00:02:58]} hxg5 {[%clk 00:06:05]}
{[%emt 00:00:04]} 34. Rd5 {[%clk 00:04:16]} {[%emt 00:01:38]} Ne7 {[%clk
00:05:01]} {[%emt 00:01:34]} 35. Ra5 {[%clk 00:03:59]} {[%emt 00:00:47]} Bc6
{[%clk 00:04:22]} {[%emt 00:01:08]} 36. Ne5 {[%clk 00:03:54]} {[%emt 00:00:35]}
Bxf3+ {[%clk 00:04:31]} {[%emt 00:00:21]} 37. Kxf3 {[%clk 00:04:12]} {[%emt
00:00:12]} Ng6 {[%clk 00:01:41]} {[%emt 00:03:20]} 38. Nxg6 {[%clk 00:03:43]}
{[%emt 00:01:00]} Rxg6 {[%clk 00:02:07]} {[%emt 00:00:04]} 39. Rxf5 {[%clk
00:04:02]} {[%emt 00:00:10]} Rb6 {[%clk 00:02:00]} {[%emt 00:00:38]} 40. Rxg5
{[%clk 00:04:12]} {[%emt 00:00:19]} Rxb3 {[%clk 00:02:24]} {[%emt 00:00:07]} 41.
Rg7 {[%clk 00:28:04]} {[%emt 00:06:38]} c5 {[%clk 00:23:46]} {[%emt 00:09:07]}
42. Ke4 {[%clk 00:27:05]} {[%emt 00:01:29]} c4 {[%clk 00:22:06]} {[%emt
00:02:11]} 43. Rg5 {[%clk 00:26:51]} {[%emt 00:00:43]} Rb6 {[%clk 00:08:37]}
{[%emt 00:13:59]} 44. Rc5 {[%clk 00:25:17]} {[%emt 00:02:04]} Re6+ {[%clk
00:06:53]} {[%emt 00:02:15]} 45. Kf4 {[%clk 00:25:45]} {[%emt 00:00:02]} Rf6+
{[%clk 00:07:08]} {[%emt 00:00:16]} 46. Kg4 {[%clk 00:26:12]} {[%emt 00:00:02]}
Rg6+ {[%clk 00:07:17]} {[%emt 00:00:21]} 47. Kh4 {[%clk 00:26:34]} {[%emt
00:00:08]} Re6 {[%clk 00:06:43]} {[%emt 00:01:03]} 48. Rxc4 {[%clk 00:26:42]}
{[%emt 00:00:23]} Rxe3 {[%clk 00:07:09]} {[%emt 00:00:04]} 49. g4 {[%clk
00:26:23]} {[%emt 00:00:48]} Ke7 {[%clk 00:07:10]} {[%emt 00:00:29]} 50. Rf4
{[%clk 00:26:51]} {[%emt 00:00:02]} Re1 {[%clk 00:06:23]} {[%emt 00:01:16]} 51.
Kh5 {[%clk 00:27:09]} {[%emt 00:00:13]} Rg1 {[%clk 00:06:18]} {[%emt 00:00:34]}
52. g5 {[%clk 00:27:31]} {[%emt 00:00:09]} Ke6 {[%clk 00:06:21]} {[%emt
00:00:26]} 53. Kh6 {[%clk 00:27:49]} {[%emt 00:00:13]} Rg2 {[%clk 00:05:35]}
{[%emt 00:01:16]} 54. g6 {[%clk 00:28:14]} {[%emt 00:00:05]} Ke7 {[%clk
00:05:28]} {[%emt 00:00:36]} 55. Kh7 {[%clk 00:28:35]} {[%emt 00:00:10]} Rg1
{[%clk 00:05:17]} {[%emt 00:00:41]} 56. g7 {[%clk 00:29:02]} {[%emt 00:00:03]}
Rh1 {[%clk 00:05:38]} {[%emt 00:00:09]} 57. Kg8 {[%clk 00:29:22]} {[%emt
00:00:10]} Rh2 {[%clk 00:05:56]} {[%emt 00:00:12]} 58. Re4+ {[%clk 00:29:47]}
{[%emt 00:00:05]} Kd6 {[%clk 00:06:07]} {[%emt 00:00:19]} 59. Kf7 {[%clk
00:30:11]} {[%emt 00:00:06]} Rf2+ {[%clk 00:06:34]} {[%emt 00:00:03]} 60. Kg6
{[%clk 00:30:35]} {[%emt 00:00:06]} Rg2 {[%clk 00:06:55]} {[%emt 00:00:09]} 61.
Kf6 {[%clk 00:30:43]} {[%emt 00:00:21]} Rg1 {[%clk 00:07:21]} {[%emt 00:00:05]}
62. Rd4+ {[%clk 00:30:52]} {[%emt 00:00:21]} Kc6 {[%clk 00:07:41]} {[%emt
00:00:10]} 63. Rd8 {[%clk 00:31:01]} {[%emt 00:00:21]} 1-0